Cogmind - Beta 11.1 @@@ ROGUE MODE // 2022.07.02 @ 12:49:43 Player: tkc Result: Destroyed by G-47 Trooper with Particle Gun Performance ------------- Evolutions (2) 1000 Regions Visited (5) 1000 Robots Destroyed (38) 190 Value Destroyed (802) 802 Prototype IDs (1) 20 Alien Tech Used (0) 0 Bonus (0) 0 TOTAL SCORE: 3012 Bonus ------- None Cogmind --------- Core Integrity 0/550 Matter 260/300 Energy 108/125 System Corruption 4% Temperature Cool (18) Movement Core (200) Ox3 Location -8/Materials Parts ------- > --- POWER (1) -------- Light Ion Engine > --- PROPULSION (4) --- (None) > --- UTILITY (4) ------ Particle Charger Power Shielding Improved Utility Shielding > --- WEAPON (2) ------- Datajack > --- INVENTORY (5) ---- Fission Core Coolant Injector Humpback Peak State ------------ > --- POWER ------------ Light Ion Engine > --- PROPULSION ------- Aluminum Leg Aluminum Leg Compact Wheel Compact Wheel > --- UTILITY ---------- Large Storage Unit Experimental Sensor Array Particle Charger Hardened Medium Armor Plating > --- WEAPON ----------- Improved EM Pulse Cannon Hammer > --- INVENTORY -------- Light Ion Engine Light Ion Engine Light Nuclear Core Fission Core Aluminum Leg Wheel Coolant Injector Humpback Power Shielding Improved EM Pulse Cannon [Rating: 28] Favorites ----------- Power Light Ion Engine Engine Light Ion Engine Power Core Light Nuclear Core Propulsion Aluminum Leg Leg Aluminum Leg Wheel Compact Wheel Utility Large Storage Unit Device Structural Scanner Storage Large Storage Unit Processor Terrain Scan Processor Protection Hardened Medium Armor Plating Weapon Small Laser Energy Gun Small Laser Energy Cannon Improved EM Pulse Cannon Ballistic Gun Light Assault Rifle Ballistic Cannon Improved Light Cannon Impact Weapon Hammer Special Melee Weapon Datajack Build | -11 -10 -10 -10 -9 -8 ------- Run | Scr Mat Min Exi Min Mat Slots Evolved 4 | . . . . . 4 Power . | . . . . . . Propulsion 2 | . . . . . 2 Utility 2 | . . . . . 2 Weapon . | . . . . . . Parts Attached 61 | 8 6 3 2 10 32 Power 10 | 1 1 1 1 2 4 Engine 9 | 1 1 1 1 2 3 Core 1 | . . . . . 1 Reactor . | . . . . . . Propulsion 19 | 3 2 1 . 4 9 Treads . | . . . . . . Leg 14 | 2 2 1 . 3 6 Wheel 5 | 1 . . . 1 3 Hover . | . . . . . . Flight . | . . . . . . Utility 15 | 1 3 . . . 11 Device 5 | . 1 . . . 4 Storage 5 | 1 1 . . . 3 Processor 1 | . 1 . . . . Hackware . | . . . . . . Protection 4 | . . . . . 4 Artifact . | . . . . . . Weapon 17 | 3 . 1 1 4 8 Energy Gun 6 | 3 . 1 . 2 . Energy Cannon 3 | . . . . . 3 Ballistic Gun 5 | . . . 1 1 3 Ballistic Cannon 1 | . . . . 1 . Launcher . | . . . . . . Special Weapon . | . . . . . . Impact Weapon 1 | . . . . . 1 Slashing Weapon . | . . . . . . Piercing Weapon . | . . . . . . Special Melee Weapon 1 | . . . . . 1 Unidentified Prototypes 1 | . . . . . 1 Parts Lost 25 | . . . . 2 23 Power 4 | . . . . . 4 Propulsion 9 | . . . . 1 8 Utility 6 | . . . . . 6 Weapon 6 | . . . . 1 5 Highest Loss Streak 15 | . . . . 2 15 To Critical Strikes . | . . . . . . Average Slot Usage (%) 95 | . 96 100 100 92 75 Engine 13 | . 14 14 14 14 6 Leg 25 | . 28 28 28 23 14 Wheel 2 | . . . . 3 14 Device 12 | . 4 14 14 14 10 Storage 13 | . 14 14 14 14 9 Energy Gun 22 | . 28 28 27 13 . Ballistic Gun 1 | . . . . 4 5 Naked Turns . | . . . . . . Heaviest Build 216 | 11 26 27 27 29 216 Greatest Support 32 | 20 20 20 20 20 32 Greatest Overweight (x) 9 | . 1 1 1 2 9 Average Overweight (x) 1 | . . 1 1 1 2 Largest Inventory Capacity 35 | 8 15 15 15 15 35 Average Capacity 15 | 6 9 15 15 15 24 Most Carried 15 | 5 8 14 15 15 14 Average Carried 13 | 3 6 11 14 14 10 Final Capacity 15 | 8 15 15 15 15 5 Final Carried 15 | 5 8 14 15 15 4 Class Distribution -------------------- 89% | Mutant 6% | Hauler-Mutant 4% | Scavenger-Mutant Dominant Class ---------------- Mutant | -10/Materials Mutant | -10/Mines Mutant | -10/Exiles Mutant | -9/Mines Hauler-Mutant | -8/Materials Resources | -11 -10 -10 -10 -9 -8 ----------- Run | Scr Mat Min Exi Min Mat Matter Collected 886 | 225 95 50 . 184 332 Remotely . | . . . . . . Salvage Created 1514 | 17 218 317 . 311 651 Parts 75 | 3 17 26 . 16 13 Haulers Intercepted . | . . . . . . Recyclers Shooed 4 | . 1 . . 1 2 Parts Field Recycled . | . . . . . . Retrieved Matter . | . . . . . . Parts Self-Destructed . | . . . . . . Prevented . | . . . . . . Kills | -11 -10 -10 -10 -9 -8 ------- Run | Scr Mat Min Exi Min Mat Combat Hostiles Destroyed 26 | . 2 8 . 6 10 Guns 20 | . 2 8 . 4 6 Cannons 4 | . . . . 2 2 Classes Destroyed 8 | 1 3 2 . . 2 Worker 2 | . . 1 . . 1 Builder 3 | . 2 . . . 1 Tunneler 1 | 1 . . . . . Recycler 6 | . 1 1 . 3 1 Swarmer 12 | . . 6 . 6 . Grunt 12 | . 2 2 . . 8 Brawler 1 | . . . . . 1 Sentry 1 | . . . . . 1 Best Kill Streak 8 | 1 2 4 . 8 2 Combat Bots Only 6 | . 1 3 . 6 2 Max Kills in Single Turn 2 | 1 1 1 . 2 1 Gunslinging . | . . . . . . Exploded . | . . . . . . Melee . | . . . . . . Uniques/NPCs Destroyed . | . . . . . . Combat | -11 -10 -10 -10 -9 -8 -------- Run | Scr Mat Min Exi Min Mat Damage Taken 3285 | . 217 312 . 420 2336 Core 748 | . 41 68 . 86 553 Absorbed by Shields . | . . . . . . Redirected to Shielding 37 | . . . . . 37 Core Remaining (%) 61 | 100 . . . 22 . Volleys Fired 145 | 9 16 22 4 24 70 Largest 2 | 2 2 2 2 2 2 Hottest 80 | 80 80 80 80 80 69 Shots Fired 229 | 18 32 44 8 41 86 Gun 199 | 18 32 44 8 26 71 Cannon 30 | . . . . 15 15 Launcher . | . . . . . . Special . | . . . . . . Kinetic 102 | . . . 2 27 73 Thermal 91 | 18 32 25 4 12 . Explosive . | . . . . . . Electromagnetic 36 | . . 19 2 2 13 Robot Hit Streak 10 | 3 6 7 . 4 10 Robot Miss Streak 6 | 4 2 6 . 6 3 Penetration Max . | . . . . . . Secondary Targets 2 | . . 2 . . . Max Gunslinging Chain 1 | . . 1 . . . Shots Hit Robots 149 | 9 22 22 . 19 77 Core Hits 67 | 1 11 14 . 11 30 Critical Kills . | . . . . . . Critical Parts Destroyed 2 | . . . . . 2 Critical Strikes 3 | . . . . . 3 Blast 1 | . . . . . 1 Smash 2 | . . . . . 2 Melee Attacks 10 | . . . . . 10 Impact 9 | . . . . . 9 Slashing . | . . . . . . Piercing . | . . . . . . Sneak Attacks 3 | . . . . . 3 Combat Hostiles . | . . . . . . Follow-up Attacks . | . . . . . . Damage Inflicted 1917 | 96 240 282 . 238 1061 Guns 1175 | 96 240 282 . 118 439 Cannons 487 | . . . . 120 367 Explosions . | . . . . . . Melee 255 | . . . . . 255 Ramming . | . . . . . . Kinetic 674 | . . . . 194 480 Thermal 513 | 96 240 145 . 32 . Explosive . | . . . . . . Electromagnetic 475 | . . 137 . 12 326 Impact 255 | . . . . . 255 Slashing . | . . . . . . Piercing . | . . . . . . Highest Corruption 4 | . . . . . 4 Average Corruption 4 | . . . . . 4 Corruption Purged . | . . . . . . Corruption Blocked . | . . . . . . Effects 15 | . . . . . 15 Message Errors 4 | . . . . . 4 Matter Fused 6 | . . . . . 6 Heat Flow Errors 1 | . . . . . 1 Parts Rejected 2 | . . . . . 2 Data Loss (minor) 1 | . . . . . 1 Alerts 1 | . . . . . 1 Overload Shots . | . . . . . . Overflow Damage 137 | . . . . 1 136 Projectiles 1 | . . . . 1 . Explosions . | . . . . . . Melee 136 | . . . . . 136 Knockbacks 3 | . . . . . 3 Impact 2 | . . . . . 2 Kinetic 1 | . . . . . 1 Secondary . | . . . . . . Self-Inflicted Damage . | . . . . . . Shots . | . . . . . . Rammed . | . . . . . . Targets Rammed . | . . . . . . Kicked . | . . . . . . Crushed . | . . . . . . Highest Temperature 270 | 90 258 106 36 50 270 Average Temperature 54 | 38 116 46 22 21 45 Received Heat Transfer 1494 | . 126 81 . . 1287 Effects 3 | . 1 . . . 2 Energy Bleed 1 | . 1 . . . . Interference 2 | . . . . . 2 Siege Activations . | . . . . . . Robots Corrupted 1 | . . . . . 1 Combat Hostiles 1 | . . . . . 1 Parts Fried 5 | . . . . . 5 Impact Corruptions 7 | . . . . . 7 Robots Melted . | . . . . . . Combat Hostiles . | . . . . . . Parts Melted 1 | . 1 . . . . Heat Transferred 1175 | 225 550 325 . 75 . Parts Sabotaged . | . . . . . . Parts Stolen . | . . . . . . Parts Stripped . | . . . . . . Power Chain Reactions . | . . . . . . Missiles Intercepted . | . . . . . . Alert | -11 -10 -10 -10 -9 -8 ------- Run | Scr Mat Min Exi Min Mat Peak Influence 218 | 5 68 201 . 138 218 Initial 53 | . 3 26 . . 53 Average 64 | 2 43 85 . 38 90 Maximum Alert Level 1 | . . 1 . . 1 Low Security (%) 95 | 100 100 85 . 100 99 Level 1 4 | . . 14 . . . Level 2 . | . . . . . . Level 3 . | . . . . . . Level 4 . | . . . . . . Level 5 . | . . . . . . High Security . | . . . . . . Max Security . | . . . . . . Squads Dispatched 4 | . . . . . 4 Investigation 1 | . . . . . 1 Extermination . | . . . . . . Reinforcement 3 | . . . . . 3 Assault . | . . . . . . Garrison . | . . . . . . Intercept . | . . . . . . Searches Triggered . | . . . . . . Construction Impeded 1 | . . . . . 1 Haulers Reinforced . | . . . . . . Active Scanning Responses . | . . . . . . Cargo Convoy Interrupts . | . . . . . . Stealth | -11 -10 -10 -10 -9 -8 --------- Run | Scr Mat Min Exi Min Mat Distress Signals 2 | . . . . . 2 Communications Jammed . | . . . . . . Distress Signals . | . . . . . . Times Spotted 39 | . 4 8 . 6 21 Peak Tracking Total 8 | . 2 3 . 4 8 Tactical Retreats 4 | . . . . . 4 Traps | -11 -10 -10 -10 -9 -8 ------- Run | Scr Mat Min Exi Min Mat Traps Triggered 1 | . . . . . 1 Indirectly . | . . . . . . Trap Hack Attempts . | . . . . . . Triggered . | . . . . . . Disarmed . | . . . . . . Reprogrammed . | . . . . . . Reused . | . . . . . . Traps Extracted . | . . . . . . Installed . | . . . . . . Triggered 1 | . . 1 . . . Machines | -11 -10 -10 -10 -9 -8 ---------- Run | Scr Mat Min Exi Min Mat Machines Disabled . | . . . . . . Max in Single Turn . | . . . . . . Machines Sabotaged . | . . . . . . Garrisons Compromised . | . . . . . . Overloaded Fab Kills . | . . . . . . Hacking | -11 -10 -10 -10 -9 -8 --------- Run | Scr Mat Min Exi Min Mat Machines Accessed 8 | . 3 . 4 . 1 Terminals 4 | . 3 . . . 1 Fabricators . | . . . . . . Repair Stations . | . . . . . . Recycling Units . | . . . . . . Scanalyzers . | . . . . . . Garrison Access . | . . . . . . Total Hacks 59 | . 8 . 49 . 2 Successful 52 | . 3 . 49 . . Failed 7 | . 5 . . . 2 Catastrophic 2 | . 1 . . . 1 Database Lockouts . | . . . . . . Manual 6 | . 5 . . . 1 Terminals 10 | . 8 . . . 2 Fabricators . | . . . . . . Repair Stations . | . . . . . . Recycling Units . | . . . . . . Scanalyzers . | . . . . . . Garrison Access . | . . . . . . Terminal Hacks 52 | . 3 . 49 . . Record 49 | . . . 49 . . Terminal Index 1 | . 1 . . . . Dispatch Records 1 | . 1 . . . . Zone Layout 1 | . 1 . . . . Fabricator Hacks . | . . . . . . Repair Station Hacks . | . . . . . . Recycling Unit Hacks . | . . . . . . Scanalyzer . | . . . . . . Garrison Access Hacks . | . . . . . . Unauthorized Hacks . | . . . . . . Terminals . | . . . . . . Fabricators . | . . . . . . Repair Stations . | . . . . . . Recycling Units . | . . . . . . Scanalyzers . | . . . . . . Garrison Access . | . . . . . . Data Cores Recovered . | . . . . . . Used . | . . . . . . Hacking Detections 4 | . 3 . . . 1 Full Trace Events 1 | . . . . . 1 Feedback Events . | . . . . . . Feedback Blocked . | . . . . . . Robot Schematics Acquired . | . . . . . . Robots Built . | . . . . . . Authchips . | . . . . . . Time . | . . . . . . Total Robot Build Rating . | . . . . . . Part Schematics Acquired . | . . . . . . Parts Built . | . . . . . . Authchips . | . . . . . . Time . | . . . . . . Total Part Build Rating . | . . . . . . Parts Repaired . | . . . . . . Time . | . . . . . . Parts Recycled . | . . . . . . Recycled Matter . | . . . . . . Retrieved Matter . | . . . . . . Retrieved Components . | . . . . . . Parts Scanalyzed . | . . . . . . Part Schematics Acquired . | . . . . . . Parts Damaged . | . . . . . . Bothacking | -11 -10 -10 -10 -9 -8 ------------ Run | Scr Mat Min Exi Min Mat Used RIF Installer . | . . . . . . Robots Hacked 1 | . . . . . 1 Non-combat . | . . . . . . Combat 1 | . . . . . 1 Robot Hacks Applied 1 | . . . . . 1 parse_system 1 | . . . . . 1 Relay Couplers Released . | . . . . . . Fabnet Peak Effective % . | . . . . . . Robots Rewired . | . . . . . . Allies Hacked . | . . . . . . Hacks Repelled . | . . . . . . Allies | -11 -10 -10 -10 -9 -8 -------- Run | Scr Mat Min Exi Min Mat Total Allies . | . . . . . . Largest Group . | . . . . . . Highest-Rated Group . | . . . . . . Highest-Rated Ally . | . . . . . . Total Orders . | . . . . . . Ally Attacks . | . . . . . . Total Damage . | . . . . . . Kills . | . . . . . . Allies Corrupted . | . . . . . . Allies Melted . | . . . . . . Intel | -11 -10 -10 -10 -9 -8 ------- Run | Scr Mat Min Exi Min Mat Robot Analysis Total . | . . . . . . Derelict Logs Recovered 2 | . . . . 2 . Drone Launches . | . . . . . . Drone Recoveries . | . . . . . . Exploration | -11 -10 -10 -10 -9 -8 ------------- Run | Scr Mat Min Exi Min Mat Turns Passed 5299 | 110 300 734 2854 691 610 Spaces Moved 2631 | 59 176 348 1493 314 241 Core 39 | 3 . . . . 36 Treads . | . . . . . . Legs 2377 | 52 176 348 1493 285 23 Wheels 215 | 4 . . . 29 182 Hover . | . . . . . . Flight . | . . . . . . Fastest Speed 50 | 50 120 190 190 115 50 Average Speed 180 | 113 134 190 190 193 145 Slowest Speed 500 | 120 190 190 190 260 500 Overloaded Moves . | . . . . . . Propulsion Burnouts . | . . . . . . Robots Hopped . | . . . . . . Cave-ins Triggered . | . . . . . . Exploration Rate (%) 48 | 3 33 63 93 81 18 Regions Visited 5 Branch Regions 3 Pre-discovered Areas 2 | . . . 1 1 . Known Exits Taken 1 | . . . . 1 . Unknown Exits Taken 4 | 1 1 1 1 . . Scrap Searched 3 | . . 1 . 2 . Spaces Dug . | . . . . . . Terrain Destroyed 1 | . . . . 1 . Melee . | . . . . . . Projectile 1 | . . . . 1 . AOE . | . . . . . . Terrain Rammed . | . . . . . . Walls Destroyed . | . . . . . . Machines Disabled . | . . . . . . Actions | -11 -10 -10 -10 -9 -8 --------- Run | Scr Mat Min Exi Min Mat Total 2935 | 80 207 376 1504 359 409 Wait 44 | . 4 . . . 40 Move 2626 | 58 175 347 1492 313 241 Hop . | . . . . . . Pick Up 29 | 4 3 4 3 5 10 Fast Attach 14 | 7 1 . . 1 5 Attach 24 | . 1 . . 2 21 Detach 3 | 1 1 . . . 1 Swap 23 | 1 4 3 2 7 6 Drop 17 | . 2 . 3 7 5 Fire 145 | 9 16 22 4 24 70 Melee 10 | . . . . . 10 Ram . | . . . . . . Kick . | . . . . . . Crush . | . . . . . . Escape Stasis . | . . . . . . Rewire . | . . . . . . Trap . | . . . . . . Miscellaneous . | . . . . . . Route ------- -11/Scrapyard -10/Materials (discovered 2 exits: [Mat] / [*Min]) -10/Mines (discovered 3 exits: [*Mat x2] / *Exi) -10/Exiles (discovered 2 exits: [*Min x2]) -9/Mines (discovered 2 exits: *Mat x2) -8/Materials History --------- Turn | Location | Event 5 | -11/Scrapyard | Discovered new exit (range 16) 111 | -11/Scrapyard | Entered Materials 320 | -10/Materials | Discovered new exit (range 17) 390 | -10/Materials | Discovered new exit (range 9) 411 | -10/Materials | Entered Mines 553 | -10/Mines | Discovered new exit (range 10) 597 | -10/Mines | Build established: Mutant 611 | -10/Mines | Discovered new exit (range 9) 770 | -10/Mines | Discovered new exit (range 5) 1004 | -10/Mines | Found a damaged Exp. Sensor Array with a note attached 1007 | -10/Mines | Found Prototype Device 1138 | -10/Mines | Deemed a non-threat by the Exiles lab entrance 1145 | -10/Mines | Entered Exiles 1192 | -10/Exiles | Met 8R-AWN 1240 | -10/Exiles | Met EX-HEX 1373 | -10/Exiles | Met EX-DEC 1515 | -10/Exiles | Discovered new exit (range 12) 1618 | -10/Exiles | Met EX-BIN 1718 | -10/Exiles | Learned location of Zion (-7) 2172 | -10/Exiles | Visited The Gauntlet 2611 | -10/Exiles | Discovered new exit (range 14) 3999 | -10/Exiles | Entered Mines 4112 | -9/Mines | Identified exit to Materials 4458 | -9/Mines | Discovered exit to Materials (range 8) 4466 | -9/Mines | Core integrity fell below 50% 4690 | -9/Mines | Entered Materials 4690 | -8/Materials | Evolved 4 slots: Propulsion x2, Utility x2 4695 | -8/Materials | Identified Exp. Sensor Array 4889 | -8/Materials | Lost 5 parts (1p2n1u1w) 5008 | -8/Materials | Build established: Hauler-Mutant 5208 | -8/Materials | Core integrity fell below 50% 5264 | -8/Materials | Core integrity fell below 20% 5290 | -8/Materials | Lost 15 parts (3p6n3u3w) 5300 | -8/Materials | Destroyed by G-47 Trooper with Particle Gun Last Messages --------------- 05244_ Dropped Lrg. Storage Unit. 05244_ K-01 Serf collects debris. 05246_ Acquired 53 matter. 05249_ K-01 Serf collects debris. 05251_ System corrupted: Matter fused (-9). 05252_ Acquired 9 matter. 05253_ Com. Battery destroyed. 05253_ K-01 Serf collects debris. 05257_ K-01 Serf cleans the Matter Filter. 05259_ Imp. EM Pulse Cannon destroyed. 05262_ O-24 Administrator: "IFF HANDSHAKE FAILED. SECURING TERMINAL." 05267_ Connecting with Terminal... 05268_ O-24 Administrator uses terminal to summon reinforcements. 05268_ ALERT: Hostiles spotted, dispatching reinforcements to Terminal M009. 05268_ O-24 Administrator locks terminal. 05271_ Acquired VSS Leg. 05274_ Acquired Imp. Utility Shielding. 05280_ Acquired Particle Charger. 05293_ System corrupted: VSS Leg rejected. Map ----- +----------------------------------------------------+ | ????????????# ?????# #????????????????????? | | ????????????? ????##/####+##? #???????????????? | | ?????????????? ???# #??? ??? #???????????????? | | ???????????????? ??# #??? ### #???????????????? | | ???????????????###/## #### #???????????????? | | ???????????????# +???????????????? | | ???????????????# #### #### #?????????????????? | | ????????????????????# #??# #?????????????????? | | ????????????????????#!#??# #?????????????????? | | ????????????????????#*#??# #?????????????????? | | ??????????????????###/#### #?????????????????? | | ??????????????????# % # ##########????????? | | ??????????????????# # ????????? | | ??????????????????#!!! % # ???????????? | | ??????????????????#!! ] / """""???????????????? | | ??????????????????#!! # """""???????????????? | | ??????????????????# # """""???????????????? | | ??????????????????######## """"" ??????????????? | | ????????????????????????# """"" "????????????? | | ????????????????????????# """"" """??????????? | | ????????????????????????# """"" """""????????? | | ????????????????????????# ??????? | | ????????????????????????# ??????? | | ???????????????????????####+######"Y"####????????? | | ???????????????????????# o g #??"?????????????? | | ???????????????????????# @ """ #????????????????? | | ???????????????????????# g""" #????????????????? | | ???????????????????????#"" """ #????????????????? | | ???????????????????????#""g #????????????????? | | ???????????????????????#"Tg""" #????????????????? | | ???????????????????????#"" """ #????????????????? | | ???????????????????????#"" """ #????????????????? | | ???????????????????????# #????????????????? | | ???????????????????????##########????????????????? | | ?????????????????????????????????????????????????? | | ?????????????????????????????????????????????????? | | ?????????????????????????????????????????????????? | | ?????????????????????????????????????????????????? | | ?????????????????????????????????????????????????? | | ?????????????????????????????????????????????????? | | ?????????????????????????????????????????????????? | | ?????????????????????????????????????????????????? | | ?????????????????????????????????????????????????? | | ?????????????????????????????????????????????????? | | ?????????????????????????????????????????????????? | | ?????????????????????????????????????????????????? | | ?????????????????????????????????????????????????? | | ?????????????????????????????????????????????????? | | ?????????????????????????????????????????????????? | | ?????????????????????????????????????????????????? | +----------------------------------------------------+ Best States ------------- Heat Dissipation 31 Energy Generation 14 Energy Capacity 360 Matter Stores 300 Matter Capacity 300 Sight Range 16 Robot Scan Range 20 Terrain Scan Density 85 Armor Coverage 225 Power Shielding 33 Utility Shielding 66 Evasion (%) 57 Particle Charging 15 Item Schematics ----------------- None Robot Schematics ------------------ None Fabricated ------------ Nothing Alien Tech Used ----------------- None Achievements -------------- Librarian Power Corrupts Tank Tourist Challenges ------------ None Game ------ Seed FactoryBiocellMicrothruster Manual? 0 Play Time 00:46:38 Cumulative 11.8 hours Start 2022.07.02 @ 12:04:48 End 2022.07.02 @ 12:49:43 Sessions 1 Manual Loads 0 Difficulty Rogue Special Mode None Game No. 13 Rogue 12 Adventurer 0 Explorer 1 Win Type - Total 0 Types 0/0/0/0/0/0/0/0/0 Lore% 9 Gallery% 12 Achievement% 10 Wizard Run 0 Options --------- ASCII 0 Keyboard 0 Movement Mouse Keybinds 0 Fullscreen 1 Font 18/X11 Map View 76x50 Tactical HUD 1 Map Filters NONE Filters NONE Steam 1 RUN: b5122927-ebcf-4fc6-9add-85576ba0ba7d